[Event "BIH-chT Premier League 2019"]
[Site "Tuzla"]
[Date "2019.06.16"]
[Round "9.6"]
[White "Zirojevic, Sasa"]
[Black "Maksimovic, Bojan"]
[Result "0-1"]
[ECO "B22"]
[WhiteElo "1941"]
[BlackElo "2295"]
[Annotator "RC"]
[PlyCount "58"]
[EventDate "2019.06.08"]
[EventType "team-tourn"]
[EventCountry "BIH"]
[SourceTitle "playchess.com"]
[Source "ChessBase"]
[SourceQuality "1"]
[TimeControl "40/5400+30:900+30"]

1. e4 {[%emt 0:00:00]} c5 {[%emt 0:00:00]} 2. c3 {[%emt 0:00:19]} d5 {[%emt 0:00:07]} 3. exd5 {[%emt 0:00:36]} Qxd5 {[%emt 0:00:07]} 4. d4 {[%emt 0:00:37]} Nf6 {[%emt 0:00:17]} 5. Nf3 {[%emt 0:00:54]} e6 {[%emt 0:00:27]} 6. Be2 {[%emt 0:00:38]} Nc6 {[%emt 0:00:16]} 7. O-O {[%emt 0:00:56]} cxd4 {[%emt 0:03:24]} 8. cxd4 {[%emt 0:00:26]} Be7 {[%emt 0:00:32]} 9. Nc3 {[%emt 0:01:28]} Qd8 {[%emt 0:00:08]} 10. Be3 {[%emt 0:01:57]} O-O {[%emt 0:00:08]} 11. Rc1 {[%emt 0:01:29]} Nb4 {[%emt 0:04:03]} 12. Qd2 {[%emt 0:04:53]} Nbd5 {[%emt 0:03:45]} 13. Ne5 {[%emt 0:06:21]} Bd7 {[%emt 0:08:05]} 14. Bf3 {[%emt 0:06:31]} Nxe3 {[%emt 0:02:51]} 15. fxe3 {[%emt 0:03:39]} Rb8 {[%emt 0:00:24]} 16. a3 {[%emt 0:05:02]} Bd6 {[%emt 0:05:34]} 17. Nc4 {[%emt 0:05:16]} Bc7 {[%emt 0:06:21]} 18. e4 {[%emt 0:07:22]} b5 {[%emt 0:07:17]} 19. e5 {[%emt 0:07:15]} bxc4 {[%emt 0:04:36]} 20. exf6 {[%emt 0:01:46]} Qxf6 {[%emt 0:01:17]} 21. Ne4 {[%emt 0:07:43]} Qf4 {[%emt 0:03:53]} 22. Qc2 {[%emt 0:03:48]} Qxh2+ {[%emt 0:04:53]} 23. Kf2 {[%emt 0:01:48]} Bb6 {[%emt 0:05:19]} 24. Rh1 {[%emt 0:20:49]} Bxd4+ {[%emt 0:00:51]} 25. Ke2 {[%emt 0:00:17]} Qxh1 {[%emt 0:01:12]} 26. Rxh1 {[%emt 0:03:35]} Rxb2 {[%emt 0:00:22]} 27. Qxb2 {[%emt 0:01:58]} Bxb2 {[%emt 0:00:15]} 28. Nd2 {[%emt 0:00:39]} Rc8 {[%emt 0:00:58]} 29. Be4 {[%emt 0:01:39]} f5 {[%emt 0:01:01]} 0-1